Cogmind - Beta 13 @@@ ROGUE MODE // 2024.05.17 @ 03:54:36 Player: mEkbOk Result: Destroyed by G-47 Trooper with Particle Gun Performance ------------- Evolutions (0) 0 Regions Visited (2) 400 Robots Destroyed (21) 105 Value Destroyed (568) 568 Prototype IDs (0) 0 Alien Tech Used (0) 0 Bonus (0) 0 TOTAL SCORE: 1073 Bonus ------- None Cogmind --------- Core Integrity 0/250 Matter 290/300 Energy 191/250 System Corruption 2% Temperature Danger (420) Movement Walking (190) Ox1 Location -10/Mines Parts ------- > --- POWER (1) -------- Ion Engine > --- PROPULSION (2) --- Aluminum Leg > --- UTILITY (2) ------ Small Storage Unit > --- WEAPON (2) ------- Small Laser Small Laser > --- INVENTORY (8) ---- Ion Engine Ion Engine Ion Engine Heat Sink Experimental Sensor Array EM Pulse Gun Mining Laser Peak State ------------ > --- POWER ------------ Ion Engine > --- PROPULSION ------- Aluminum Leg Compact Wheel > --- UTILITY ---------- Small Storage Unit Utility Shielding > --- WEAPON ----------- EM Pulse Gun Small Laser > --- INVENTORY -------- Ion Engine Ion Engine Ion Engine Heat Sink Experimental Sensor Array EM Pulse Gun Small Laser Mining Laser [Rating: 8] Favorites ----------- Power Ion Engine Engine Ion Engine Propulsion Light Treads Treads Light Treads Leg Aluminum Leg Wheel Compact Wheel Utility Small Storage Unit Device Sensor Array Storage Small Storage Unit Protection Utility Shielding Weapon Medium Laser Energy Gun Medium Laser Build | -11 -10 -10 ------- Run | Yrd Mat Min Slots Evolved . | . . . Power . | . . . Propulsion . | . . . Utility . | . . . Weapon . | . . . Parts Attached 18 | 6 8 4 Power 3 | 1 1 1 Engine 3 | 1 1 1 Core . | . . . Reactor . | . . . Propulsion 5 | 2 2 1 Treads 2 | 2 . . Leg 1 | . . 1 Wheel 2 | . 2 . Hover . | . . . Flight . | . . . Utility 3 | 1 1 1 Device 1 | . . 1 Storage 1 | 1 . . Processor . | . . . Hackware . | . . . Protection 1 | . 1 . Artifact . | . . . Weapon 7 | 2 4 1 Energy Gun 7 | 2 4 1 Energy Cannon . | . . . Ballistic Gun . | . . . Ballistic Cannon . | . . . Launcher . | . . . Special Weapon . | . . . Impact Weapon . | . . . Slashing Weapon . | . . . Piercing Weapon . | . . . Special Melee Weapon . | . . . Unidentified Prototypes . | . . . Parts Lost 8 | . 3 5 Power 2 | . 1 1 Propulsion 3 | . 1 2 Utility 1 | . . 1 Weapon 2 | . 1 1 Highest Loss Streak 2 | . 2 2 To Critical Strikes . | . . . Average Slot Usage (%) 98 | . 98 96 Engine 13 | . 13 12 Treads 14 | . 19 . Leg 3 | . . 12 Wheel 9 | . 8 14 Device 2 | . . 8 Storage 14 | . 14 14 Protection 11 | . 13 4 Energy Gun 27 | . 27 27 Naked Turns . | . . . Heaviest Build 15 | 14 15 14 Greatest Support 40 | 40 40 16 Greatest Overweight (x) . | . . . Average Overweight (x) . | . . . Largest Inventory Capacity 8 | 8 8 8 Average Capacity 7 | 7 8 8 Most Carried 8 | 5 8 8 Average Carried 5 | 3 4 7 Final Capacity 8 | 8 8 8 Final Carried 8 | 4 8 7 Class Distribution -------------------- 100% | Mutant Dominant Class ---------------- Mutant | -10/Materials Mutant | -10/Mines Resources | -11 -10 -10 ----------- Run | Yrd Mat Min Matter Collected 426 | 189 192 45 Remotely . | . . . Salvage Created 726 | . 568 158 Parts 40 | . 29 11 Haulers Intercepted . | . . . Recyclers Shooed 1 | . 1 . Parts Field Recycled . | . . . Retrieved Matter . | . . . Parts Self-Destructed . | . . . Prevented . | . . . Kills | -11 -10 -10 ------- Run | Yrd Mat Min Combat Hostiles Destroyed 18 | . 13 5 Guns 16 | . 11 5 AOE 1 | . 1 . Classes Destroyed 4 | . 4 . Builder 1 | . 1 . Watcher 2 | . 2 . Swarmer 5 | . 3 2 Grunt 13 | . 10 3 Best Kill Streak 3 | . 3 2 Combat Bots Only 3 | . 3 2 Max Kills in Single Turn 1 | . 1 1 Gunslinging . | . . . Exploded 1 | . 1 . Melee . | . . . Uniques/NPCs Destroyed . | . . . Combat | -11 -10 -10 -------- Run | Yrd Mat Min Hostile Shots Fired 135 | . 88 47 Missed 39 | . 24 15 Damage Taken 1141 | . 745 396 Core 260 | . 143 117 Absorbed by Shields . | . . . Redirected to Shielding 8 | . 8 . Core Remaining (%) 100 | 100 . . Volleys Fired 91 | . 66 25 Largest 2 | . 2 2 Hottest 100 | . 100 80 Shots Fired 161 | . 112 49 Gun 161 | . 112 49 Cannon . | . . . Launcher . | . . . Special . | . . . Kinetic . | . . . Thermal 107 | . 71 36 Explosive . | . . . Electromagnetic 54 | . 41 13 Robot Hit Streak 7 | . 7 4 Robot Miss Streak 7 | . 7 5 Penetration Max . | . . . Secondary Targets 2 | . 1 1 Max Gunslinging Chain 1 | . 1 1 Shots Hit Robots 98 | . 71 27 Core Hits 36 | . 25 11 Critical Kills . | . . . Critical Parts Destroyed . | . . . Critical Strikes 10 | . 10 . Burn 9 | . 9 . Corrupt 1 | . 1 . Melee Attacks . | . . . Impact . | . . . Slashing . | . . . Piercing . | . . . Sneak Attacks . | . . . Combat Hostiles . | . . . Follow-up Attacks . | . . . Damage Inflicted 1318 | . 996 322 Guns 1290 | . 968 322 Cannons . | . . . Explosions 28 | . 28 . Melee . | . . . Ramming . | . . . Kinetic . | . . . Thermal 898 | . 668 230 Explosive . | . . . Electromagnetic 420 | . 328 92 Impact . | . . . Slashing . | . . . Piercing . | . . . Highest Corruption 2 | . 2 2 Average Corruption 1 | . 1 2 Corruption Purged . | . . . Corruption Blocked . | . . . Effects 16 | . 6 10 Message Errors 2 | . 1 1 Matter Fused 4 | . 1 3 Heat Flow Errors 4 | . 3 1 Energy Discharges 2 | . 1 1 Misfires 1 | . . 1 Alerts 2 | . . 2 Weapon Failures 1 | . . 1 Overload Shots . | . . . Overflow Damage . | . . . Projectiles . | . . . Explosions . | . . . Melee . | . . . Knockbacks . | . . . Impact . | . . . Kinetic . | . . . Secondary . | . . . Self-Inflicted Damage . | . . . Shots . | . . . Rammed . | . . . Targets Rammed . | . . . Kicked . | . . . Crushed . | . . . Highest Temperature 411 | . 403 411 Average Temperature 143 | . 146 131 Received Heat Transfer 594 | . 393 201 Effects 6 | . 4 2 Shutdowns 3 | . 2 1 Energy Bleed 1 | . . 1 Interference 1 | . 1 . Matter Decay 1 | . 1 . Siege Activations . | . . . Robots Corrupted . | . . . Combat Hostiles . | . . . Parts Fried 1 | . 1 . Impact Corruptions . | . . . Robots Melted 1 | . 1 . Combat Hostiles 1 | . 1 . Parts Melted 2 | . 2 . Heat Transferred 3078 | . 2553 525 Parts Sabotaged . | . . . Parts Stolen . | . . . Parts Stripped . | . . . Power Chain Reactions 1 | . 1 . Alert | -11 -10 -10 ------- Run | Yrd Mat Min Peak Influence 186 | . 186 100 Initial 15 | . . 15 Average 63 | . 70 61 Maximum Alert Level . | . . . Low Security (%) 100 | 100 100 100 Level 1 . | . . . Level 2 . | . . . Level 3 . | . . . Level 4 . | . . . Level 5 . | . . . High Security . | . . . Max Security . | . . . Squads Dispatched 5 | . 5 . Investigation 3 | . 3 . Extermination . | . . . Reinforcement 2 | . 2 . Assault . | . . . Garrison . | . . . Intercept . | . . . Searches Triggered . | . . . Construction Impeded . | . . . Haulers Reinforced . | . . . Active Scanning Responses . | . . . Cargo Convoy Interrupts . | . . . Stealth | -11 -10 -10 --------- Run | Yrd Mat Min Distress Signals . | . . . Communications Jammed . | . . . Distress Signals . | . . . Times Spotted 25 | . 18 7 Peak Tracking Total 4 | . 4 2 Tactical Retreats . | . . . Traps | -11 -10 -10 ------- Run | Yrd Mat Min Traps Triggered 3 | . 3 . Indirectly . | . . . Trap Hack Attempts . | . . . Triggered . | . . . Disarmed 6 | . 6 . Reprogrammed . | . . . Reused . | . . . Traps Extracted . | . . . Installed . | . . . Triggered . | . . . Machines | -11 -10 -10 ---------- Run | Yrd Mat Min Machines Disabled . | . . . Max in Single Turn . | . . . Machines Repaired . | . . . Machines Dismantled . | . . . Machines Sabotaged . | . . . Overloaded Fab Kills . | . . . Hacking | -11 -10 -10 --------- Run | Yrd Mat Min Machines Accessed 6 | . 5 1 Terminals 5 | . 4 1 Fabricators . | . . . Repair Stations . | . . . Recycling Units 1 | . 1 . Scanalyzers . | . . . Garrison Access . | . . . Total Hacks 19 | . 16 3 Successful 8 | . 7 1 Failed 11 | . 9 2 Catastrophic 3 | . 2 1 Database Lockouts . | . . . Manual 11 | . 9 2 Terminals 17 | . 14 3 Fabricators . | . . . Repair Stations . | . . . Recycling Units 2 | . 2 . Scanalyzers . | . . . Garrison Access . | . . . Terminal Hacks 7 | . 6 1 Record 1 | . 1 . Terminal Index 1 | . 1 . Locate Traps 1 | . 1 . Disarm Traps 1 | . 1 . Dispatch Records 1 | . . 1 Hauler Manifests 1 | . 1 . Registered Components 1 | . 1 . Fabricator Hacks . | . . . Repair Station Hacks . | . . . Recycling Unit Hacks . | . . . Scanalyzer . | . . . Garrison Access Hacks . | . . . Unauthorized Hacks 1 | . 1 . Terminals 1 | . 1 . Track 1 | . 1 . Fabricators . | . . . Repair Stations . | . . . Recycling Units . | . . . Scanalyzers . | . . . Garrison Access . | . . . Data Cores Recovered . | . . . Used . | . . . Hacking Detections 6 | . 5 1 Full Trace Events 3 | . 3 . Feedback Events . | . . . Feedback Blocked . | . . . Robot Schematics Acquired . | . . . Robots Built . | . . . Authchips . | . . . Time . | . . . Total Robot Build Rating . | . . . Part Schematics Acquired . | . . . Parts Built . | . . . Authchips . | . . . Time . | . . . Total Part Build Rating . | . . . Parts Repaired . | . . . Time . | . . . Parts Recycled . | . . . Recycled Matter . | . . . Retrieved Matter . | . . . Retrieved Components . | . . . Parts Scanalyzed . | . . . Part Schematics Acquired . | . . . Parts Damaged . | . . . Bothacking | -11 -10 -10 ------------ Run | Yrd Mat Min Used RIF Installer . | . . . Robots Hacked . | . . . Non-combat . | . . . Combat . | . . . Robot Hacks Applied . | . . . Relay Couplers Released . | . . . Fabnet Peak Effective % . | . . . Robots Rewired . | . . . Allies Hacked . | . . . Hacks Repelled . | . . . Allies | -11 -10 -10 -------- Run | Yrd Mat Min Total Allies . | . . . Largest Group . | . . . Highest-Rated Group . | . . . Highest-Rated Ally . | . . . Total Orders . | . . . Ally Attacks . | . . . Total Damage . | . . . Kills . | . . . Allies Corrupted . | . . . Allies Melted . | . . . Intel | -11 -10 -10 ------- Run | Yrd Mat Min Robot Analysis Total . | . . . Derelict Logs Recovered 1 | . . 1 Drone Launches . | . . . Drone Recoveries . | . . . Exploration | -11 -10 -10 ------------- Run | Yrd Mat Min Turns Passed 1669 | 117 1163 389 Spaces Moved 1084 | 67 708 309 Core 7 | 7 . . Treads 442 | 60 382 . Legs . | . . . Wheels 635 | . 326 309 Hover . | . . . Flight . | . . . Fastest Speed 50 | 50 100 100 Average Speed 124 | 148 132 100 Slowest Speed 160 | 160 160 100 Overloaded Moves . | . . . Propulsion Burnouts . | . . . Robots Hopped . | . . . Cave-ins Triggered . | . . . Exploration Rate (%) 53 | 5 87 67 Regions Visited 2 Branch Regions 1 Pre-discovered Areas . | . . . Known Exits Taken . | . . . Unknown Exits Taken 2 | 1 1 . Scrap Searched 1 | . . 1 Spaces Dug . | . . . Terrain Destroyed . | . . . Melee . | . . . Projectile . | . . . AOE . | . . . Terrain Rammed . | . . . Walls Destroyed . | . . . Machines Disabled . | . . . Actions | -11 -10 -10 --------- Run | Yrd Mat Min Total 1249 | 86 823 340 Wait 20 | . 20 . Move 1082 | 66 707 309 Hop . | . . . Pick Up 28 | 12 15 1 Fast Attach 2 | . . 2 Attach 13 | 6 5 2 Detach . | . . . Swap 3 | . 3 . Drop 10 | 2 7 1 Fire 91 | . 66 25 Melee . | . . . Ram . | . . . Kick . | . . . Crush . | . . . Escape Stasis . | . . . Rewire . | . . . Trap . | . . . Miscellaneous . | . . . Route ------- -11/Scrapyard -10/Materials (discovered 4 exits: [*Mat x2] / *Min x2) -10/Mines (discovered 3 exits: [*Mat] / [*Exi] / Sub) History --------- Turn | Location | Event 6 | -11/Scrapyard | Discovered new exit (range 15) 118 | -11/Scrapyard | Entered Materials 328 | -10/Materials | Build established: Mutant 430 | -10/Materials | Discovered new exit (range 16) 513 | -10/Materials | Discovered new exit (range 10) 837 | -10/Materials | Discovered new exit (range 14) 933 | -10/Materials | Core integrity fell below 50% 969 | -10/Materials | Discovered new exit (range 16) 1281 | -10/Materials | Entered Mines 1330 | -10/Mines | Found a damaged Exp. Sensor Array with a note attached 1333 | -10/Mines | Found Prototype Device 1353 | -10/Mines | Deemed a non-threat by the Exiles lab entrance 1353 | -10/Mines | Discovered new exit (range 5) 1543 | -10/Mines | Discovered new exit (range 6) 1643 | -10/Mines | Identified exit to Subcaves 1657 | -10/Mines | Core integrity fell below 20% 1670 | -10/Mines | Destroyed by G-47 Trooper with Particle Gun Last Messages --------------- S-10 Pest destroyed. Acquired 10 matter. Acquired 9 matter. EXIT=FOUND System corrupted: FCS attempts to trigger Sml. Laser. System corrupted: Sml. Laser misfires. R-06 Scavenger collects Flight Unit. System corrupted: Energy discharge (-97). System corrupted: Matter fused (-6). Acquired derelict log, extracted data. Sensor Array destroyed. Com. Wheel destroyed. G-34 Mercenary destroyed. System corrupted: Heat flow error (+194). System corrupted: Sml. Laser failed to cycle. Power failure, Ion Engine shutdown. Overheating: Energy bleed (-57). Critical hit (Burn: +37). System corrupted: Matter fused (-10). Map ----- +----------------------------------------------------+ | | | | | ?????????????????????????????????????????????????? | | ?????????????????????????????????????????????????? | | ?????????????????????????????????????????????????? | | ?????????????????????????????????????????????????? | | ?????????????????????????????????????????????????? | | ????####?????????????????????????????????????????? | | ??### ##????????????????????????????????????????? | | ?## #????????????????????????????????????????? | | ?# ##????????????????????????????????????????? | | ?# ##????????????????????????????????????????? | | ?# #????????????????????????????????????????? | | ?# ##????????????????? #???????????????????? | | ?## ##???????????????? #???????????????????? | | ??## ###?????????????? #???????????????????? | | ??## ##????????# """ #???????????????????? | | ?## #????????? #???????????????????? | | ## #????????? """u ????????????????????? | | ##????????? """ ????????????????????? | | ##???????????""" ?????????????????????? | | ##???????????? [*?????????????????????? | | #####?????????????#g%#?????????????????????? | | ##?????????????????# =#?????????????????????? | | ##?????????????????# #?????????????????????? | | ##????????????????#@ #?????????????????????? | | # ##???????????????# #?????????????????????? | | # #####???????????# #?????????????????????? | | # ############# #?????????????????????? | | # #?????????????????????? | | ## ############ #?????????????????????? | | ?# ##??????????# #?????????????????????? | | ?# * # ####???????????# #?????????????????????? | | ?# ## #??????????????# #?????????????????????? | | ?#% ### #??????????????# #?????????????????????? | | ?# %#?# #??????????????# #?????????????????????? | | ## #?# #??????????????# #?????????????????????? | | #?# #??????????????# ?????????????????????? | | ## ### ##?????????????# ?????????????????????? | | ## ## #???????##????## "?????????????????????? | | # #??????? ?????? "?????????????????????? | | ##??????? ?????? "?????????????????????? | | #???????# #?????? ?????????????????????? | | #???????# #??????#??????????????????????? | | ## #???????# #?????????????????????????????? | | ### #??????# #?????????????????????????????? | | ### #???#### ##????????????????????????????? | | ## ##??## ##???????????????????????????? | | ### ##???# #???????????????????????????? | | ##?# #????# #???????????????????????????? | +----------------------------------------------------+ Best States ------------- Heat Dissipation 25 Energy Generation 10 Energy Capacity 250 Matter Stores 300 Matter Capacity 300 Sight Range 16 Robot Scan Range 14 Terrain Scan Density 10 Utility Shielding 33 Evasion (%) 40 Recoil Reduction 2 Item Schematics ----------------- None Robot Schematics ------------------ None Fabricated ------------ Nothing Alien Tech Used ----------------- None Achievements -------------- None Challenges ------------ None Game ------ Seed BombardmentGaussDiverter Manual? 0 Play Time 00:20:46 Cumulative 15.6 hours Start 2024.05.17 @ 03:33:48 End 2024.05.17 @ 03:54:36 Sessions 1 Manual Loads 0 Difficulty Rogue Special Mode None Game No. 9 Rogue 9 Adventurer 0 Explorer 0 Win Type - Total 0 Types 0/0/0/0/0/0/0/0/0 Lore% 14 Gallery% 17 Achievement% 17 Wizard Run 0 Options --------- Layout 1 ASCII 0 Keyboard 0 Movement Mouse Keybinds 0 Fullscreen 2 Font 32/SmallcapsGlow Map View 50x35 Zoom Use 0% Tactical HUD 0 Map Filters NONE Filters NONE Steam 1 RUN: 583f96c6-804a-4709-ae7f-f8495d683438